[Event "Titled Tuesday Blitz November 08 Late 2022"]
[White "Al-Tarboush, Ward"]
[Black "Storey, Charles H"]
[WhiteFideId "7601450"]
[BlackFideId "406686"]
[WhiteElo "2273"]
[BlackElo "2252"]
[Result "1-0"]
[Round "11"]
[TimeControl "180+1"]
[Date "2022.11.09"]
[WhiteClock "0:00:29"]
[BlackClock "0:00:05"]

1. d4 {[%clk 0:03:00]}  g6 {[%clk 0:02:54]} 2. e4 {[%clk 0:03:00]}  Bg7 {[%clk 0:02:54]} 3. Nc3 {[%clk 0:03:00]}  c5 {[%clk 0:02:54]} 4. d5 {[%clk 0:03:00]}  d6 {[%clk 0:02:54]} 5. Nf3 {[%clk 0:03:00]}  Nf6 {[%clk 0:02:55]} 6. Be2 {[%clk 0:03:00]}  O-O {[%clk 0:02:55]} 7. O-O {[%clk 0:03:01]}  Na6 {[%clk 0:02:55]} 8. a4 {[%clk 0:03:00]}  Nc7 {[%clk 0:02:56]} 9. h3 {[%clk 0:02:58]}  a6 {[%clk 0:02:55]} 10. a5 {[%clk 0:02:58]}  Rb8 {[%clk 0:02:54]} 11. Be3 {[%clk 0:02:58]}  b5 {[%clk 0:02:55]} 12. axb6 {[%clk 0:02:58]}  Rxb6 {[%clk 0:02:55]} 13. Na4 {[%clk 0:02:57]}  Rb4 {[%clk 0:02:42]} 14. e5 {[%clk 0:02:52]}  Nfxd5 {[%clk 0:02:38]} 15. c3 {[%clk 0:02:51]}  Nxe3 {[%clk 0:02:34]} 16. fxe3 {[%clk 0:02:50]}  Re4 {[%clk 0:02:30]} 17. Bd3 {[%clk 0:02:36]}  Rxe3 {[%clk 0:02:28]} 18. Qd2 {[%clk 0:02:32]}  Rxf3 {[%clk 0:02:27]} 19. Rxf3 {[%clk 0:02:31]}  Bxe5 {[%clk 0:02:28]} 20. Raf1 {[%clk 0:02:30]}  Be6 {[%clk 0:02:18]} 21. Nb6 {[%clk 0:02:27]}  Qb8 {[%clk 0:02:12]} 22. Nc4 {[%clk 0:02:24]}  Bg7 {[%clk 0:02:04]} 23. Ne3 {[%clk 0:02:16]}  d5 {[%clk 0:01:50]} 24. Ng4 {[%clk 0:02:17]}  c4 {[%clk 0:01:41]} 25. Bb1 {[%clk 0:02:10]}  Bxg4 {[%clk 0:01:41]} 26. hxg4 {[%clk 0:02:11]}  e6 {[%clk 0:01:33]} 27. Qf2 {[%clk 0:02:07]}  Qe8 {[%clk 0:01:29]} 28. Qa7 {[%clk 0:02:06]}  Qc6 {[%clk 0:01:22]} 29. Kh1 {[%clk 0:02:00]}  Nb5 {[%clk 0:01:15]} 30. Qe7 {[%clk 0:01:56]}  Nd6 {[%clk 0:01:05]} 31. Qg5 {[%clk 0:01:37]}  e5 {[%clk 0:01:01]} 32. Rh3 {[%clk 0:01:31]}  Ne4 {[%clk 0:00:52]} 33. Qh4 {[%clk 0:01:19]}  h6 {[%clk 0:00:50]} 34. Bxe4 {[%clk 0:01:17]}  dxe4 {[%clk 0:00:50]} 35. g5 {[%clk 0:01:16]}  h5 {[%clk 0:00:42]} 36. g4 {[%clk 0:01:16]}  e3+ {[%clk 0:00:41]} 37. Kh2 {[%clk 0:01:17]}  Rd8 {[%clk 0:00:34]} 38. Rxe3 {[%clk 0:01:13]}  Rd2+ {[%clk 0:00:34]} 39. Rf2 {[%clk 0:01:13]}  Rxf2+ {[%clk 0:00:33]} 40. Qxf2 {[%clk 0:01:14]}  hxg4 {[%clk 0:00:32]} 41. Qg2 {[%clk 0:01:09]}  Qe6 {[%clk 0:00:25]} 42. Re4 {[%clk 0:01:07]}  Qb6 {[%clk 0:00:19]} 43. Rxg4 {[%clk 0:01:06]}  Bf8 {[%clk 0:00:16]} 44. Rh4 {[%clk 0:01:01]}  Bd6 {[%clk 0:00:15]} 45. Qa8+ {[%clk 0:00:59]}  Bb8 {[%clk 0:00:12]} 46. Rxc4 {[%clk 0:00:33]}  e4+ {[%clk 0:00:13]} 47. Kh1 {[%clk 0:00:30]}  Kg7 {[%clk 0:00:11]} 48. Qxe4 {[%clk 0:00:28]}  Qxb2 {[%clk 0:00:09]} 49. Qd4+ {[%clk 0:00:28]}  Kh7 {[%clk 0:00:06]} 50. Qh4+ {[%clk 0:00:29]}  Kg7 {[%clk 0:00:06]} 51. Qh6+ {[%clk 0:00:28]}  Kg8 {[%clk 0:00:05]} 52. Rc8# {[%clk 0:00:29]} 1-0


[Site "https://www.chess.com"]

[Event "Titled Tuesday Blitz November 08 Late 2022"]
[White "Alexikov, Alexander"]
[Black "Estrada Nieto, Julian"]
[WhiteFideId "14103958"]
[BlackFideId "5101018"]
[WhiteElo "2222"]
[BlackElo "2221"]
[Result "1-0"]
[Round "11"]
[TimeControl "180+1"]
[Date "2022.11.09"]
[WhiteClock "0:00:09"]
[BlackClock "0:00:09"]

1. e4 {[%clk 0:03:00]}  e5 {[%clk 0:02:59]} 2. Nf3 {[%clk 0:03:00]}  Nc6 {[%clk 0:03:00]} 3. c3 {[%clk 0:03:00]}  Nf6 {[%clk 0:02:59]} 4. d4 {[%clk 0:02:59]}  Nxe4 {[%clk 0:02:59]} 5. d5 {[%clk 0:02:59]}  Ne7 {[%clk 0:03:00]} 6. Nxe5 {[%clk 0:02:58]}  Ng6 {[%clk 0:03:00]} 7. Qf3 {[%clk 0:02:57]}  Nxe5 {[%clk 0:02:57]} 8. Qxe4 {[%clk 0:02:57]}  Qe7 {[%clk 0:02:57]} 9. Be3 {[%clk 0:02:57]}  Ng6 {[%clk 0:02:39]} 10. Qd4 {[%clk 0:02:32]}  Qe5 {[%clk 0:02:36]} 11. Nd2 {[%clk 0:02:20]}  b6 {[%clk 0:02:30]} 12. Nf3 {[%clk 0:02:16]}  Qxd4 {[%clk 0:02:30]} 13. Nxd4 {[%clk 0:02:12]}  Bb7 {[%clk 0:02:30]} 14. c4 {[%clk 0:02:11]}  Bb4+ {[%clk 0:02:26]} 15. Bd2 {[%clk 0:02:10]}  Bxd2+ {[%clk 0:02:23]} 16. Kxd2 {[%clk 0:02:10]}  O-O-O {[%clk 0:02:20]} 17. g3 {[%clk 0:02:02]}  Rhe8 {[%clk 0:02:10]} 18. Bg2 {[%clk 0:01:59]}  Ne5 {[%clk 0:02:10]} 19. b3 {[%clk 0:01:51]}  a6 {[%clk 0:02:06]} 20. h3 {[%clk 0:01:45]}  g5 {[%clk 0:01:56]} 21. a4 {[%clk 0:01:35]}  c6 {[%clk 0:01:47]} 22. Nf5 {[%clk 0:01:18]}  Kc7 {[%clk 0:01:38]} 23. d6+ {[%clk 0:01:14]}  Kb8 {[%clk 0:01:36]} 24. Ne7 {[%clk 0:01:13]}  c5 {[%clk 0:01:32]} 25. Bxb7 {[%clk 0:01:10]}  Kxb7 {[%clk 0:01:32]} 26. Kc3 {[%clk 0:00:58]}  Nc6 {[%clk 0:01:32]} 27. Rhe1 {[%clk 0:00:51]}  Nxe7 {[%clk 0:01:16]} 28. dxe7 {[%clk 0:00:49]}  Rc8 {[%clk 0:01:16]} 29. Rad1 {[%clk 0:00:49]}  Rc7 {[%clk 0:01:11]} 30. Rd5 {[%clk 0:00:35]}  h6 {[%clk 0:01:06]} 31. Rd6 {[%clk 0:00:35]}  h5 {[%clk 0:00:59]} 32. Re5 {[%clk 0:00:33]}  h4 {[%clk 0:00:55]} 33. g4 {[%clk 0:00:32]}  Rc6 {[%clk 0:00:45]} 34. Rxd7+ {[%clk 0:00:30]}  Kc8 {[%clk 0:00:45]} 35. Ra7 {[%clk 0:00:29]}  Re6 {[%clk 0:00:45]} 36. Rxg5 {[%clk 0:00:23]}  R8xe7 {[%clk 0:00:43]} 37. Rxe7 {[%clk 0:00:23]}  Rxe7 {[%clk 0:00:42]} 38. a5 {[%clk 0:00:23]}  Kb7 {[%clk 0:00:39]} 39. axb6 {[%clk 0:00:22]}  Kxb6 {[%clk 0:00:40]} 40. Rf5 {[%clk 0:00:20]}  a5 {[%clk 0:00:24]} 41. Rf6+ {[%clk 0:00:19]}  Kb7 {[%clk 0:00:24]} 42. Kd3 {[%clk 0:00:19]}  Rd7+ {[%clk 0:00:23]} 43. Ke3 {[%clk 0:00:19]}  Kc8 {[%clk 0:00:20]} 44. Rc6+ {[%clk 0:00:16]}  Kd8 {[%clk 0:00:18]} 45. Rxc5 {[%clk 0:00:16]}  Rb7 {[%clk 0:00:18]} 46. Rb5 {[%clk 0:00:16]}  Re7+ {[%clk 0:00:17]} 47. Kf4 {[%clk 0:00:14]}  Rd7 {[%clk 0:00:17]} 48. Rc5 {[%clk 0:00:13]}  Ke7 {[%clk 0:00:15]} 49. Rxa5 {[%clk 0:00:13]}  Rd3 {[%clk 0:00:15]} 50. Re5+ {[%clk 0:00:11]}  Kf6 {[%clk 0:00:13]} 51. Re3 {[%clk 0:00:11]}  Rd4+ {[%clk 0:00:13]} 52. Kf3 {[%clk 0:00:10]}  Kg6 {[%clk 0:00:12]} 53. Ke2 {[%clk 0:00:09]}  f5 {[%clk 0:00:11]} 54. f3 {[%clk 0:00:09]}  f4 {[%clk 0:00:10]} 55. Rd3 {[%clk 0:00:08]}  Rxd3 {[%clk 0:00:08]} 56. Kxd3 {[%clk 0:00:08]}  Kf6 {[%clk 0:00:09]} 57. Kd4 {[%clk 0:00:09]}  Kg5 {[%clk 0:00:09]} 58. Ke4 {[%clk 0:00:09]} 1-0


[Site "https://www.chess.com"]

[Event "Titled Tuesday Blitz November 08 Late 2022"]
[White "Aqib Javaid Butt"]
[Black "Kaganskiy, Gleb"]
[WhiteFideId "7801262"]
[BlackFideId "4132025"]
[WhiteElo "1659"]
[BlackElo "2165"]
[Result "0-1"]
[Round "11"]
[TimeControl "180+1"]
[Date "2022.11.09"]
[WhiteClock "0:00:04"]
[BlackClock "0:00:08"]

1. d4 {[%clk 0:03:00]}  Nf6 {[%clk 0:02:57]} 2. c4 {[%clk 0:03:01]}  e6 {[%clk 0:02:56]} 3. Nc3 {[%clk 0:03:02]}  Bb4 {[%clk 0:02:54]} 4. Nf3 {[%clk 0:03:03]}  O-O {[%clk 0:02:53]} 5. g3 {[%clk 0:03:00]}  c5 {[%clk 0:02:39]} 6. Bg2 {[%clk 0:02:59]}  d6 {[%clk 0:02:39]} 7. Bd2 {[%clk 0:02:56]}  Nc6 {[%clk 0:02:31]} 8. d5 {[%clk 0:02:47]}  exd5 {[%clk 0:02:29]} 9. Nxd5 {[%clk 0:02:44]}  Bxd2+ {[%clk 0:02:28]} 10. Qxd2 {[%clk 0:02:45]}  Nxd5 {[%clk 0:02:28]} 11. Qxd5 {[%clk 0:02:41]}  Nb4 {[%clk 0:02:24]} 12. Qd2 {[%clk 0:02:40]}  d5 {[%clk 0:02:20]} 13. cxd5 {[%clk 0:02:37]}  Qxd5 {[%clk 0:02:17]} 14. Qxd5 {[%clk 0:02:29]}  Nxd5 {[%clk 0:02:18]} 15. Rd1 {[%clk 0:02:29]}  Nb4 {[%clk 0:02:14]} 16. a3 {[%clk 0:02:14]}  Nc2+ {[%clk 0:02:10]} 17. Kd2 {[%clk 0:02:14]}  Nd4 {[%clk 0:02:10]} 18. Nxd4 {[%clk 0:02:13]}  cxd4 {[%clk 0:02:10]} 19. Be4 {[%clk 0:01:55]}  Be6 {[%clk 0:02:05]} 20. Rc1 {[%clk 0:01:54]}  Rac8 {[%clk 0:02:00]} 21. b4 {[%clk 0:01:48]}  b6 {[%clk 0:02:00]} 22. Bd3 {[%clk 0:01:37]}  g5 {[%clk 0:01:51]} 23. Ba6 {[%clk 0:01:36]}  Rcd8 {[%clk 0:01:48]} 24. Rc7 {[%clk 0:01:30]}  Rd7 {[%clk 0:01:46]} 25. Rhc1 {[%clk 0:01:29]}  Rfd8 {[%clk 0:01:44]} 26. Bb5 {[%clk 0:00:48]}  Rxc7 {[%clk 0:01:37]} 27. Rxc7 {[%clk 0:00:49]}  a5 {[%clk 0:01:34]} 28. bxa5 {[%clk 0:00:46]}  bxa5 {[%clk 0:01:35]} 29. a4 {[%clk 0:00:46]}  h5 {[%clk 0:01:03]} 30. Bc4 {[%clk 0:00:42]}  Bxc4 {[%clk 0:01:00]} 31. Rxc4 {[%clk 0:00:43]}  Kg7 {[%clk 0:00:48]} 32. Kd3 {[%clk 0:00:43]}  Rb8 {[%clk 0:00:46]} 33. Rxd4 {[%clk 0:00:37]}  Rb2 {[%clk 0:00:44]} 34. Rd5 {[%clk 0:00:33]}  f6 {[%clk 0:00:42]} 35. Rxa5 {[%clk 0:00:33]}  Rb1 {[%clk 0:00:40]} 36. Ra8 {[%clk 0:00:32]}  Rf1 {[%clk 0:00:36]} 37. Ke3 {[%clk 0:00:21]}  Rh1 {[%clk 0:00:32]} 38. a5 {[%clk 0:00:21]}  Rxh2 {[%clk 0:00:33]} 39. a6 {[%clk 0:00:22]}  Rh1 {[%clk 0:00:34]} 40. Rb8 {[%clk 0:00:20]}  Ra1 {[%clk 0:00:32]} 41. Rb7+ {[%clk 0:00:20]}  Kg6 {[%clk 0:00:31]} 42. a7 {[%clk 0:00:20]}  Ra4 {[%clk 0:00:25]} 43. Kd3 {[%clk 0:00:19]}  h4 {[%clk 0:00:23]} 44. gxh4 {[%clk 0:00:18]}  gxh4 {[%clk 0:00:23]} 45. Kc3 {[%clk 0:00:17]}  h3 {[%clk 0:00:22]} 46. Kb3 {[%clk 0:00:18]}  Ra1 {[%clk 0:00:22]} 47. Rb8 {[%clk 0:00:13]}  Rxa7 {[%clk 0:00:14]} 48. Rh8 {[%clk 0:00:13]}  Rh7 {[%clk 0:00:13]} 49. Rg8+ {[%clk 0:00:14]}  Kf5 {[%clk 0:00:09]} 50. Rg1 {[%clk 0:00:13]}  h2 {[%clk 0:00:09]} 51. Rh1 {[%clk 0:00:14]}  Kg4 {[%clk 0:00:10]} 52. e4 {[%clk 0:00:13]}  Kh3 {[%clk 0:00:10]} 53. f4 {[%clk 0:00:12]}  Re7 {[%clk 0:00:07]} 54. e5 {[%clk 0:00:08]}  fxe5 {[%clk 0:00:07]} 55. fxe5 {[%clk 0:00:09]}  Rxe5 {[%clk 0:00:08]} 56. Kc2 {[%clk 0:00:07]}  Rg5 {[%clk 0:00:08]} 57. Kd2 {[%clk 0:00:06]}  Rg1 {[%clk 0:00:08]} 58. Rxg1 {[%clk 0:00:04]}  hxg1=Q {[%clk 0:00:08]} 0-1


[Site "https://www.chess.com"]

[Event "Titled Tuesday Blitz November 08 Late 2022"]
[White "Baskakov, Egor"]
[Black "Hansen, Eric"]
[WhiteFideId "24197866"]
[BlackFideId "2606771"]
[WhiteElo "2211"]
[BlackElo "2568"]
[Result "0-1"]
[Round "11"]
[TimeControl "180+1"]
[Date "2022.11.09"]
[WhiteClock "0:00:06"]
[BlackClock "0:00:03"]

1. e4 {[%clk 0:03:00]}  c5 {[%clk 0:02:58]} 2. Nf3 {[%clk 0:03:01]}  e6 {[%clk 0:02:55]} 3. Be2 {[%clk 0:03:00]}  Nc6 {[%clk 0:02:54]} 4. c4 {[%clk 0:03:01]}  Nf6 {[%clk 0:02:54]} 5. Nc3 {[%clk 0:03:01]}  d6 {[%clk 0:02:53]} 6. d4 {[%clk 0:03:01]}  cxd4 {[%clk 0:02:52]} 7. Nxd4 {[%clk 0:03:02]}  Be7 {[%clk 0:02:53]} 8. O-O {[%clk 0:03:03]}  O-O {[%clk 0:02:54]} 9. Be3 {[%clk 0:03:03]}  Bd7 {[%clk 0:02:54]} 10. Rc1 {[%clk 0:03:03]}  Nxd4 {[%clk 0:02:54]} 11. Bxd4 {[%clk 0:03:03]}  Bc6 {[%clk 0:02:55]} 12. Bf3 {[%clk 0:03:03]}  Nd7 {[%clk 0:02:52]} 13. Nd5 {[%clk 0:03:01]}  Bg5 {[%clk 0:02:49]} 14. Rb1 {[%clk 0:02:52]}  Ne5 {[%clk 0:02:47]} 15. Be2 {[%clk 0:02:48]}  Ng6 {[%clk 0:02:35]} 16. Nc3 {[%clk 0:02:46]}  a5 {[%clk 0:02:29]} 17. g3 {[%clk 0:02:40]}  Be7 {[%clk 0:01:56]} 18. f4 {[%clk 0:02:38]}  e5 {[%clk 0:01:57]} 19. Be3 {[%clk 0:02:37]}  exf4 {[%clk 0:01:56]} 20. gxf4 {[%clk 0:02:38]}  f5 {[%clk 0:01:56]} 21. exf5 {[%clk 0:02:35]}  Nh4 {[%clk 0:01:56]} 22. Nd5 {[%clk 0:02:23]}  Nxf5 {[%clk 0:01:51]} 23. Bb6 {[%clk 0:02:23]}  Qe8 {[%clk 0:01:43]} 24. Bg4 {[%clk 0:02:24]}  Qg6 {[%clk 0:01:41]} 25. Kh1 {[%clk 0:02:23]}  Bh4 {[%clk 0:01:25]} 26. Qf3 {[%clk 0:02:19]}  Rae8 {[%clk 0:01:23]} 27. Rg1 {[%clk 0:02:16]}  Qh6 {[%clk 0:01:21]} 28. Bh3 {[%clk 0:02:03]}  Bd8 {[%clk 0:01:08]} 29. Bf2 {[%clk 0:01:58]}  Bh4 {[%clk 0:01:06]} 30. Bb6 {[%clk 0:01:58]}  a4 {[%clk 0:00:52]} 31. Rg2 {[%clk 0:01:56]}  Bd8 {[%clk 0:00:49]} 32. Bf2 {[%clk 0:01:55]}  Bh4 {[%clk 0:00:43]} 33. Bb6 {[%clk 0:01:54]}  Be1 {[%clk 0:00:43]} 34. Rg4 {[%clk 0:01:42]}  Re6 {[%clk 0:00:29]} 35. Rg5 {[%clk 0:01:29]}  g6 {[%clk 0:00:20]} 36. Bxf5 {[%clk 0:01:00]}  Rxf5 {[%clk 0:00:21]} 37. Rxf5 {[%clk 0:01:00]}  gxf5 {[%clk 0:00:22]} 38. Bd4 {[%clk 0:01:00]}  Kf7 {[%clk 0:00:19]} 39. b4 {[%clk 0:00:44]}  axb3 {[%clk 0:00:19]} 40. axb3 {[%clk 0:00:45]}  Re4 {[%clk 0:00:19]} 41. Bg1 {[%clk 0:00:39]}  Bd2 {[%clk 0:00:12]} 42. Qd3 {[%clk 0:00:23]}  Bxf4 {[%clk 0:00:12]} 43. b4 {[%clk 0:00:23]}  Be5 {[%clk 0:00:11]} 44. b5 {[%clk 0:00:23]}  Bd7 {[%clk 0:00:11]} 45. Rf1 {[%clk 0:00:22]}  Qh4 {[%clk 0:00:05]} 46. Ne3 {[%clk 0:00:14]}  Kg6 {[%clk 0:00:04]} 47. Nd5 {[%clk 0:00:12]}  Rg4 {[%clk 0:00:04]} 48. Qf3 {[%clk 0:00:10]}  Kf7 {[%clk 0:00:02]} 49. Qe2 {[%clk 0:00:06]}  Be6 {[%clk 0:00:02]} 50. Ne3 {[%clk 0:00:06]}  Rg5 {[%clk 0:00:03]} 51. Qf3 {[%clk 0:00:06]}  Kg6 {[%clk 0:00:03]} 52. Ng2 {[%clk 0:00:06]}  Qg4 {[%clk 0:00:03]} 53. Qe2 {[%clk 0:00:06]}  Qxe2 {[%clk 0:00:03]} 0-1


[Site "https://www.chess.com"]

[Event "Titled Tuesday Blitz November 08 Late 2022"]
[White "Boruchovsky, Avital"]
[Black "Melkumyan, Hrant"]
[WhiteFideId "2800055"]
[BlackFideId "13302485"]
[WhiteElo "2458"]
[BlackElo "2604"]
[Result "1-0"]
[Round "11"]
[TimeControl "180+1"]
[Date "2022.11.09"]
[WhiteClock "0:00:04"]
[BlackClock "0:00:02"]

1. e4 {[%clk 0:03:00]}  c5 {[%clk 0:02:59]} 2. Nf3 {[%clk 0:03:00]}  Nc6 {[%clk 0:03:00]} 3. Bb5 {[%clk 0:03:00]}  g6 {[%clk 0:03:00]} 4. O-O {[%clk 0:03:00]}  Bg7 {[%clk 0:02:59]} 5. c3 {[%clk 0:03:00]}  a6 {[%clk 0:02:59]} 6. Bxc6 {[%clk 0:02:55]}  dxc6 {[%clk 0:03:00]} 7. h3 {[%clk 0:02:50]}  Nf6 {[%clk 0:02:59]} 8. Re1 {[%clk 0:02:49]}  O-O {[%clk 0:02:58]} 9. d4 {[%clk 0:02:49]}  Nd7 {[%clk 0:02:49]} 10. Be3 {[%clk 0:02:40]}  cxd4 {[%clk 0:02:45]} 11. cxd4 {[%clk 0:02:41]}  e5 {[%clk 0:02:45]} 12. Nc3 {[%clk 0:02:39]}  exd4 {[%clk 0:02:39]} 13. Bxd4 {[%clk 0:02:40]}  Nf6 {[%clk 0:02:36]} 14. Qb3 {[%clk 0:02:25]}  Qe7 {[%clk 0:02:27]} 15. Na4 {[%clk 0:02:11]}  b5 {[%clk 0:02:17]} 16. Nb6 {[%clk 0:02:01]}  Rb8 {[%clk 0:02:15]} 17. Qc3 {[%clk 0:02:01]}  Rd8 {[%clk 0:01:57]} 18. Nxc8 {[%clk 0:01:21]}  Rbxc8 {[%clk 0:01:49]} 19. b4 {[%clk 0:01:21]}  a5 {[%clk 0:01:30]} 20. a3 {[%clk 0:01:16]}  h6 {[%clk 0:01:12]} 21. Rac1 {[%clk 0:01:12]}  Qe6 {[%clk 0:01:07]} 22. Bxf6 {[%clk 0:00:54]}  Bxf6 {[%clk 0:01:00]} 23. e5 {[%clk 0:00:54]}  Bg7 {[%clk 0:00:54]} 24. Nd4 {[%clk 0:00:53]}  Qd7 {[%clk 0:00:24]} 25. Nxc6 {[%clk 0:00:48]}  axb4 {[%clk 0:00:24]} 26. axb4 {[%clk 0:00:44]}  Kh7 {[%clk 0:00:25]} 27. Qc5 {[%clk 0:00:34]}  Re8 {[%clk 0:00:24]} 28. Qxb5 {[%clk 0:00:25]}  Re6 {[%clk 0:00:22]} 29. Nd4 {[%clk 0:00:23]}  Rxc1 {[%clk 0:00:22]} 30. Qxd7 {[%clk 0:00:23]}  Rxe1+ {[%clk 0:00:21]} 31. Kh2 {[%clk 0:00:23]}  R6xe5 {[%clk 0:00:17]} 32. Qxf7 {[%clk 0:00:10]}  Re7 {[%clk 0:00:17]} 33. Qd5 {[%clk 0:00:08]}  Rd1 {[%clk 0:00:17]} 34. Qc5 {[%clk 0:00:08]}  Re5 {[%clk 0:00:10]} 35. Qa7 {[%clk 0:00:08]}  Rd5 {[%clk 0:00:03]} 36. Ne6 {[%clk 0:00:06]}  Rd7 {[%clk 0:00:04]} 37. Qc5 {[%clk 0:00:04]}  R1d5 {[%clk 0:00:02]} 38. Qc8 {[%clk 0:00:04]}  Be5+ {[%clk 0:00:02]} 39. g3 {[%clk 0:00:05]}  Bd6 {[%clk 0:00:01]} 40. Qxd7+ {[%clk 0:00:03]}  Kg8 {[%clk 0:00:02]} 41. Qg7# {[%clk 0:00:04]} 1-0


[Site "https://www.chess.com"]

[Event "Titled Tuesday Blitz November 08 Late 2022"]
[White "Chigaev, Maksim"]
[Black "Sarana, Alexey"]
[WhiteFideId "4108116"]
[BlackFideId "24133795"]
[WhiteElo "2541"]
[BlackElo "2708"]
[Result "1-0"]
[Round "11"]
[TimeControl "180+1"]
[Date "2022.11.09"]
[WhiteClock "0:00:06"]
[BlackClock "0:00:02"]

1. Nf3 {[%clk 0:03:00]}  d5 {[%clk 0:03:00]} 2. c4 {[%clk 0:03:00]}  d4 {[%clk 0:02:59]} 3. b4 {[%clk 0:03:01]}  c5 {[%clk 0:03:00]} 4. Bb2 {[%clk 0:03:00]}  Nf6 {[%clk 0:02:52]} 5. g3 {[%clk 0:02:56]}  e6 {[%clk 0:02:39]} 6. Bg2 {[%clk 0:02:55]}  Nc6 {[%clk 0:02:36]} 7. b5 {[%clk 0:02:55]}  Na5 {[%clk 0:02:34]} 8. d3 {[%clk 0:02:54]}  Bd6 {[%clk 0:02:34]} 9. O-O {[%clk 0:02:54]}  O-O {[%clk 0:02:34]} 10. e3 {[%clk 0:02:44]}  e5 {[%clk 0:02:33]} 11. Re1 {[%clk 0:02:37]}  a6 {[%clk 0:02:33]} 12. a4 {[%clk 0:02:28]}  h6 {[%clk 0:02:33]} 13. exd4 {[%clk 0:02:22]}  exd4 {[%clk 0:02:34]} 14. Nbd2 {[%clk 0:02:22]}  Bf5 {[%clk 0:02:32]} 15. Qc2 {[%clk 0:02:13]}  Bh7 {[%clk 0:02:30]} 16. h3 {[%clk 0:01:58]}  Qc7 {[%clk 0:02:18]} 17. Nb3 {[%clk 0:01:50]}  axb5 {[%clk 0:02:00]} 18. cxb5 {[%clk 0:01:26]}  Nd5 {[%clk 0:01:14]} 19. Nxa5 {[%clk 0:00:52]}  Nb4 {[%clk 0:01:14]} 20. Qb3 {[%clk 0:00:33]}  Qxa5 {[%clk 0:01:13]} 21. Bf1 {[%clk 0:00:20]}  Bf5 {[%clk 0:01:01]} 22. Nd2 {[%clk 0:00:17]}  Qc7 {[%clk 0:00:58]} 23. Kh2 {[%clk 0:00:11]}  h5 {[%clk 0:00:35]} 24. h4 {[%clk 0:00:11]}  Qd8 {[%clk 0:00:33]} 25. Kg1 {[%clk 0:00:08]}  Be6 {[%clk 0:00:33]} 26. Nc4 {[%clk 0:00:07]}  Qc7 {[%clk 0:00:15]} 27. Kh2 {[%clk 0:00:05]}  Rae8 {[%clk 0:00:14]} 28. Ba3 {[%clk 0:00:04]}  Nd5 {[%clk 0:00:13]} 29. Rac1 {[%clk 0:00:02]}  b6 {[%clk 0:00:13]} 30. Qd1 {[%clk 0:00:02]}  g6 {[%clk 0:00:12]} 31. Qd2 {[%clk 0:00:02]}  Nc3 {[%clk 0:00:12]} 32. a5 {[%clk 0:00:02]}  bxa5 {[%clk 0:00:11]} 33. b6 {[%clk 0:00:03]}  Qd7 {[%clk 0:00:11]} 34. Nxd6 {[%clk 0:00:03]}  Qxd6 {[%clk 0:00:12]} 35. Rxc3 {[%clk 0:00:04]}  dxc3 {[%clk 0:00:12]} 36. Qxc3 {[%clk 0:00:05]}  Qxb6 {[%clk 0:00:05]} 37. Bxc5 {[%clk 0:00:05]}  Rc8 {[%clk 0:00:05]} 38. d4 {[%clk 0:00:05]}  Qb8 {[%clk 0:00:04]} 39. Qe3 {[%clk 0:00:04]}  Rfd8 {[%clk 0:00:04]} 40. Qh6 {[%clk 0:00:04]}  Bf5 {[%clk 0:00:04]} 41. Bc4 {[%clk 0:00:03]}  Rd7 {[%clk 0:00:03]} 42. Re5 {[%clk 0:00:02]}  Qb2 {[%clk 0:00:02]} 43. Rxf5 {[%clk 0:00:03]}  gxf5 {[%clk 0:00:01]} 44. Qg6+ {[%clk 0:00:03]}  Kh8 {[%clk 0:00:02]} 45. Qxh5+ {[%clk 0:00:04]}  Kg8 {[%clk 0:00:02]} 46. Qg6+ {[%clk 0:00:04]}  Kh8 {[%clk 0:00:03]} 47. Qh6+ {[%clk 0:00:04]}  Kg8 {[%clk 0:00:03]} 48. Qg5+ {[%clk 0:00:05]}  Kh8 {[%clk 0:00:04]} 49. Qxf5 {[%clk 0:00:06]}  Rxc5 {[%clk 0:00:03]} 50. dxc5 {[%clk 0:00:03]}  Qd4 {[%clk 0:00:03]} 51. c6 {[%clk 0:00:02]}  Rc7 {[%clk 0:00:03]} 52. Bd3 {[%clk 0:00:02]}  Kg7 {[%clk 0:00:03]} 53. Qg5+ {[%clk 0:00:03]}  Kf8 {[%clk 0:00:03]} 54. Bf1 {[%clk 0:00:01]}  a4 {[%clk 0:00:02]} 55. Bg2 {[%clk 0:00:02]}  a3 {[%clk 0:00:02]} 56. Qa5 {[%clk 0:00:02]}  Qd6 {[%clk 0:00:03]} 57. Qa8+ {[%clk 0:00:02]}  Kg7 {[%clk 0:00:03]} 58. Qa5 {[%clk 0:00:03]}  f6 {[%clk 0:00:04]} 59. h5 {[%clk 0:00:03]}  Qe7 {[%clk 0:00:04]} 60. f4 {[%clk 0:00:03]}  Kf8 {[%clk 0:00:03]} 61. Qa8+ {[%clk 0:00:03]}  Kg7 {[%clk 0:00:04]} 62. Qa5 {[%clk 0:00:04]}  Qd6 {[%clk 0:00:04]} 63. Qf5 {[%clk 0:00:03]}  Kf8 {[%clk 0:00:04]} 64. h6 {[%clk 0:00:03]}  a2 {[%clk 0:00:04]} 65. Qa5 {[%clk 0:00:03]}  Rh7 {[%clk 0:00:04]} 66. Qa8+ {[%clk 0:00:03]}  Kf7 {[%clk 0:00:04]} 67. Qb7+ {[%clk 0:00:03]}  Kg6 {[%clk 0:00:04]} 68. Be4+ {[%clk 0:00:04]}  f5 {[%clk 0:00:05]} 69. Bxf5+ {[%clk 0:00:04]}  Kxf5 {[%clk 0:00:06]} 70. Qxh7+ {[%clk 0:00:05]}  Kg4 {[%clk 0:00:06]} 71. Qg8+ {[%clk 0:00:03]}  Kf3 {[%clk 0:00:06]} 72. Qb3+ {[%clk 0:00:04]}  Kg4 {[%clk 0:00:06]} 73. Qxa2 {[%clk 0:00:04]}  Qxh6+ {[%clk 0:00:06]} 74. Kg1 {[%clk 0:00:05]}  Qxc6 {[%clk 0:00:05]} 75. Qf2 {[%clk 0:00:05]}  Qc1+ {[%clk 0:00:05]} 76. Kh2 {[%clk 0:00:05]}  Qd1 {[%clk 0:00:04]} 77. Qg2 {[%clk 0:00:05]}  Kf5 {[%clk 0:00:03]} 78. Qh3+ {[%clk 0:00:05]}  Ke4 {[%clk 0:00:03]} 79. Qe6+ {[%clk 0:00:05]}  Kf3 {[%clk 0:00:04]} 80. Qc6+ {[%clk 0:00:06]}  Ke3 {[%clk 0:00:02]} 81. Qe6+ {[%clk 0:00:05]}  Kf3 {[%clk 0:00:03]} 82. Qc6+ {[%clk 0:00:06]}  Ke3 {[%clk 0:00:03]} 83. Qb6+ {[%clk 0:00:06]}  Kf3 {[%clk 0:00:04]} 84. Qb7+ {[%clk 0:00:06]}  Ke3 {[%clk 0:00:03]} 85. Qa7+ {[%clk 0:00:06]}  Kf3 {[%clk 0:00:04]} 86. Qa8+ {[%clk 0:00:07]}  Ke3 {[%clk 0:00:04]} 87. Qe8+ {[%clk 0:00:08]}  Kf2 {[%clk 0:00:04]} 88. Kh3 {[%clk 0:00:08]}  Qh1+ {[%clk 0:00:03]} 89. Kg4 {[%clk 0:00:09]}  Qf3+ {[%clk 0:00:04]} 90. Kf5 {[%clk 0:00:09]}  Qxg3 {[%clk 0:00:02]} 91. Qe5 {[%clk 0:00:05]}  Qh3+ {[%clk 0:00:02]} 92. Kg5 {[%clk 0:00:06]}  Qg3+ {[%clk 0:00:02]} 93. Kf6 {[%clk 0:00:06]}  Qh4+ {[%clk 0:00:01]} 94. Qg5 {[%clk 0:00:06]}  Qh1 {[%clk 0:00:02]} 95. f5 {[%clk 0:00:06]}  Qb7 {[%clk 0:00:01]} 96. Kg6 {[%clk 0:00:06]}  Qe4 {[%clk 0:00:02]} 97. Kg7 {[%clk 0:00:06]}  Qd4+ {[%clk 0:00:01]} 98. f6 {[%clk 0:00:06]}  Kf3 {[%clk 0:00:02]} 99. Kg8 {[%clk 0:00:06]}  Qc4+ {[%clk 0:00:01]} 100. f7 {[%clk 0:00:06]}  Qb3 {[%clk 0:00:01]} 101. Kg7 {[%clk 0:00:06]}  Qb2+ {[%clk 0:00:02]} 102. Qf6+ {[%clk 0:00:06]} 1-0


[Site "https://www.chess.com"]